Cogmind - Beta 11.1 @@@ ROGUE MODE // 2022.09.25 @ 15:52:27 Player: HeartGrenade Result: Destroyed by G-47 Trooper with Particle Gun Performance ------------- Evolutions (0) 0 Regions Visited (2) 400 Robots Destroyed (23) 115 Value Destroyed (590) 590 Prototype IDs (0) 0 Alien Tech Used (0) 0 Bonus (0) 0 TOTAL SCORE: 1105 Bonus ------- None Cogmind --------- Core Integrity 0/250 Matter 253/300 Energy 237/250 System Corruption 6% Temperature Cool (9) Movement Treading (160) Location -10/Mines Parts ------- > --- POWER (1) -------- Ion Engine > --- PROPULSION (2) --- Light Treads Light Treads > --- UTILITY (2) ------ Heat Sink Large Storage Unit > --- WEAPON (2) ------- Heavy Assault Rifle Autogun > --- INVENTORY (15) --- Light Nuclear Core Light Treads Light Treads Light Treads Seismic Detector Heavy Assault Rifle Heavy Assault Rifle Autogun Makeshift Sword Peak State ------------ > --- POWER ------------ Ion Engine > --- PROPULSION ------- Light Treads Light Treads > --- UTILITY ---------- Improved Heat Sink Small Storage Unit > --- WEAPON ----------- Medium Laser Heavy Assault Rifle > --- INVENTORY -------- Ion Engine Seismic Detector Medium Laser Assault Rifle Assault Rifle Assault Rifle Heavy Assault Rifle Heavy Assault Rifle [Rating: 11] Favorites ----------- Power Ion Engine Engine Ion Engine Propulsion Light Treads Treads Light Treads Utility Heat Sink Device Heat Sink Storage Small Storage Unit Weapon Medium Laser Energy Gun Medium Laser Ballistic Gun Heavy Assault Rifle Build | -11 -10 -10 ------- Run | Scr Mat Min Slots Evolved . | . . . Power . | . . . Propulsion . | . . . Utility . | . . . Weapon . | . . . Parts Attached 18 | 4 12 2 Power 3 | 1 2 . Engine 3 | 1 2 . Core . | . . . Reactor . | . . . Propulsion 4 | 2 2 . Treads 4 | 2 2 . Leg . | . . . Wheel . | . . . Hover . | . . . Flight . | . . . Utility 5 | . 5 . Device 3 | . 3 . Storage 2 | . 2 . Processor . | . . . Hackware . | . . . Protection . | . . . Artifact . | . . . Weapon 6 | 1 3 2 Energy Gun 2 | 1 1 . Energy Cannon . | . . . Ballistic Gun 4 | . 2 2 Ballistic Cannon . | . . . Launcher . | . . . Special Weapon . | . . . Impact Weapon . | . . . Slashing Weapon . | . . . Piercing Weapon . | . . . Special Melee Weapon . | . . . Unidentified Prototypes . | . . . Parts Lost 5 | . 4 1 Power 2 | . 2 . Propulsion 1 | . 1 . Utility 1 | . 1 . Weapon 1 | . . 1 Highest Loss Streak 2 | . 2 1 To Critical Strikes . | . . . Average Slot Usage (%) 96 | . 93 100 Engine 13 | . 13 14 Treads 27 | . 27 28 Device 12 | . 12 14 Storage 12 | . 11 14 Energy Gun 14 | . 14 14 Ballistic Gun 13 | . 13 14 Naked Turns . | . . . Heaviest Build 31 | 5 31 31 Greatest Support 40 | 3 40 40 Greatest Overweight (x) 1 | 1 1 . Average Overweight (x) . | . . . Largest Inventory Capacity 15 | 5 15 15 Average Capacity 10 | 5 8 15 Most Carried 10 | 3 8 10 Average Carried 7 | 2 6 9 Final Capacity 15 | 5 15 15 Final Carried 9 | 3 8 9 Class Distribution -------------------- 100% | Mutant Dominant Class ---------------- Mutant | -10/Materials Mutant | -10/Mines Resources | -11 -10 -10 ----------- Run | Scr Mat Min Matter Collected 605 | 240 292 73 Remotely . | . . . Salvage Created 873 | . 680 193 Parts 36 | . 27 9 Haulers Intercepted 2 | . 2 . Recyclers Shooed 1 | . 1 . Parts Field Recycled . | . . . Retrieved Matter . | . . . Parts Self-Destructed . | . . . Prevented . | . . . Kills | -11 -10 -10 ------- Run | Scr Mat Min Combat Hostiles Destroyed 19 | . 13 6 Guns 19 | . 13 6 Classes Destroyed 5 | . 5 . Hauler 2 | . 2 . Recycler 1 | . 1 . Watcher 1 | . 1 . Swarmer 6 | . 3 3 Grunt 13 | . 10 3 Best Kill Streak 4 | . 4 3 Combat Bots Only 4 | . 4 3 Max Kills in Single Turn 1 | . 1 1 Gunslinging . | . . . Exploded . | . . . Melee . | . . . Uniques/NPCs Destroyed . | . . . Combat | -11 -10 -10 -------- Run | Scr Mat Min Damage Taken 1108 | . 801 307 Core 256 | . 172 84 Absorbed by Shields . | . . . Core Remaining (%) 100 | 100 . . Volleys Fired 74 | . 55 19 Largest 2 | . 2 2 Hottest 73 | . 73 73 Shots Fired 147 | . 110 37 Gun 147 | . 110 37 Cannon . | . . . Launcher . | . . . Special . | . . . Kinetic 74 | . 55 19 Thermal 73 | . 55 18 Explosive . | . . . Electromagnetic . | . . . Robot Hit Streak 18 | . 17 18 Robot Miss Streak 3 | . 3 2 Penetration Max . | . . . Secondary Targets 2 | . 1 1 Max Gunslinging Chain 1 | . 1 1 Shots Hit Robots 109 | . 81 28 Core Hits 42 | . 28 14 Critical Kills . | . . . Critical Parts Destroyed 1 | . 1 . Critical Strikes 8 | . 6 2 Burn 7 | . 5 2 Destroy 1 | . 1 . Melee Attacks . | . . . Impact . | . . . Slashing . | . . . Piercing . | . . . Sneak Attacks . | . . . Combat Hostiles . | . . . Follow-up Attacks . | . . . Damage Inflicted 1546 | . 1140 406 Guns 1546 | . 1140 406 Cannons . | . . . Explosions . | . . . Melee . | . . . Ramming . | . . . Kinetic 849 | . 623 226 Thermal 697 | . 517 180 Explosive . | . . . Electromagnetic . | . . . Impact . | . . . Slashing . | . . . Piercing . | . . . Highest Corruption 6 | . 6 6 Average Corruption 5 | . 5 6 Corruption Purged . | . . . Corruption Blocked . | . . . Effects 31 | . 19 12 Message Errors 8 | . 7 1 Matter Fused 9 | . 5 4 Heat Flow Errors 4 | . 2 2 Energy Discharges 2 | . 1 1 Parts Rejected 2 | . 1 1 Data Loss (minor) 1 | . 1 . Data Loss (major) 1 | . . 1 Misfires 1 | . 1 . Alerts 2 | . . 2 Weapon Failures 1 | . 1 . Overload Shots . | . . . Overflow Damage . | . . . Projectiles . | . . . Explosions . | . . . Melee . | . . . Knockbacks . | . . . Impact . | . . . Kinetic . | . . . Secondary . | . . . Self-Inflicted Damage . | . . . Shots . | . . . Rammed . | . . . Targets Rammed . | . . . Kicked . | . . . Crushed . | . . . Highest Temperature 256 | . 243 256 Average Temperature 72 | . 72 72 Received Heat Transfer 585 | . 402 183 Siege Activations . | . . . Robots Corrupted . | . . . Combat Hostiles . | . . . Parts Fried . | . . . Impact Corruptions . | . . . Robots Melted . | . . . Combat Hostiles . | . . . Parts Melted 4 | . 3 1 Heat Transferred 2516 | . 1850 666 Parts Sabotaged . | . . . Parts Stolen . | . . . Parts Stripped . | . . . Power Chain Reactions . | . . . Missiles Intercepted . | . . . Alert | -11 -10 -10 ------- Run | Scr Mat Min Peak Influence 244 | . 221 244 Initial 27 | . . 27 Average 128 | . 123 147 Maximum Alert Level 1 | . 1 1 Low Security (%) 82 | 100 93 62 Level 1 17 | . 6 37 Level 2 . | . . . Level 3 . | . . . Level 4 . | . . . Level 5 . | . . . High Security . | . . . Max Security . | . . . Squads Dispatched 3 | . 3 . Investigation 3 | . 3 . Extermination . | . . . Reinforcement . | . . . Assault . | . . . Garrison . | . . . Intercept . | . . . Searches Triggered . | . . . Construction Impeded . | . . . Haulers Reinforced . | . . . Active Scanning Responses . | . . . Cargo Convoy Interrupts . | . . . Stealth | -11 -10 -10 --------- Run | Scr Mat Min Distress Signals 1 | . 1 . Communications Jammed . | . . . Distress Signals . | . . . Times Spotted 33 | . 24 9 Peak Tracking Total 6 | . 6 4 Tactical Retreats 3 | . 1 2 Traps | -11 -10 -10 ------- Run | Scr Mat Min Traps Triggered 5 | . 5 . Indirectly . | . . . Trap Hack Attempts . | . . . Triggered . | . . . Disarmed . | . . . Reprogrammed . | . . . Reused . | . . . Traps Extracted . | . . . Installed . | . . . Triggered . | . . . Machines | -11 -10 -10 ---------- Run | Scr Mat Min Machines Disabled 1 | . . 1 Max in Single Turn 1 | . . 1 Machines Sabotaged . | . . . Garrisons Compromised . | . . . Overloaded Fab Kills . | . . . Hacking | -11 -10 -10 --------- Run | Scr Mat Min Machines Accessed 6 | . 5 1 Terminals 6 | . 5 1 Fabricators . | . . . Repair Stations . | . . . Recycling Units . | . . . Scanalyzers . | . . . Garrison Access . | . . . Total Hacks 19 | . 14 5 Successful 3 | . 2 1 Failed 16 | . 12 4 Catastrophic 3 | . 2 1 Database Lockouts . | . . . Manual 19 | . 14 5 Terminals 19 | . 14 5 Fabricators . | . . . Repair Stations . | . . . Recycling Units . | . . . Scanalyzers . | . . . Garrison Access . | . . . Terminal Hacks 3 | . 2 1 Part Schematic 1 | . . 1 Robot Analysis 2 | . 2 . Fabricator Hacks . | . . . Repair Station Hacks . | . . . Recycling Unit Hacks . | . . . Scanalyzer . | . . . Garrison Access Hacks . | . . . Unauthorized Hacks . | . . . Terminals . | . . . Fabricators . | . . . Repair Stations . | . . . Recycling Units . | . . . Scanalyzers . | . . . Garrison Access . | . . . Data Cores Recovered . | . . . Used . | . . . Hacking Detections 6 | . 5 1 Full Trace Events 2 | . 2 . Feedback Events . | . . . Feedback Blocked . | . . . Robot Schematics Acquired . | . . . Robots Built . | . . . Authchips . | . . . Time . | . . . Total Robot Build Rating . | . . . Part Schematics Acquired 1 | . . 1 Parts Built . | . . . Authchips . | . . . Time . | . . . Total Part Build Rating . | . . . Parts Repaired . | . . . Time . | . . . Parts Recycled . | . . . Recycled Matter . | . . . Retrieved Matter . | . . . Retrieved Components . | . . . Parts Scanalyzed . | . . . Part Schematics Acquired . | . . . Parts Damaged . | . . . Bothacking | -11 -10 -10 ------------ Run | Scr Mat Min Used RIF Installer . | . . . Robots Hacked . | . . . Non-combat . | . . . Combat . | . . . Robot Hacks Applied . | . . . Relay Couplers Released . | . . . Fabnet Peak Effective % . | . . . Robots Rewired . | . . . Allies Hacked . | . . . Hacks Repelled . | . . . Allies | -11 -10 -10 -------- Run | Scr Mat Min Total Allies . | . . . Largest Group . | . . . Highest-Rated Group . | . . . Highest-Rated Ally . | . . . Total Orders . | . . . Ally Attacks . | . . . Total Damage . | . . . Kills . | . . . Allies Corrupted . | . . . Allies Melted . | . . . Intel | -11 -10 -10 ------- Run | Scr Mat Min Robot Analysis Total 2 | . 2 . Derelict Logs Recovered 2 | . . 2 Drone Launches . | . . . Drone Recoveries . | . . . Exploration | -11 -10 -10 ------------- Run | Scr Mat Min Turns Passed 1374 | 45 825 504 Spaces Moved 717 | 40 399 278 Core 78 | 40 38 . Treads 639 | . 361 278 Legs . | . . . Wheels . | . . . Hover . | . . . Flight . | . . . Fastest Speed 50 | 50 100 160 Average Speed 152 | 90 154 160 Slowest Speed 160 | 100 160 160 Overloaded Moves . | . . . Propulsion Burnouts . | . . . Robots Hopped . | . . . Cave-ins Triggered . | . . . Exploration Rate (%) 43 | 5 75 49 Regions Visited 2 Branch Regions 1 Pre-discovered Areas . | . . . Known Exits Taken . | . . . Unknown Exits Taken 2 | 1 1 . Scrap Searched 1 | . . 1 Spaces Dug . | . . . Terrain Destroyed . | . . . Melee . | . . . Projectile . | . . . AOE . | . . . Terrain Rammed . | . . . Walls Destroyed . | . . . Machines Disabled . | . . . Actions | -11 -10 -10 --------- Run | Scr Mat Min Total 854 | 46 506 302 Wait 19 | . 18 1 Move 715 | 39 398 278 Hop . | . . . Pick Up 19 | 3 14 2 Fast Attach 10 | 4 5 1 Attach 5 | . 4 1 Detach . | . . . Swap 3 | . 3 . Drop 9 | . 9 . Fire 74 | . 55 19 Melee . | . . . Ram . | . . . Kick . | . . . Crush . | . . . Escape Stasis . | . . . Rewire . | . . . Trap . | . . . Miscellaneous . | . . . Route ------- -11/Scrapyard -10/Materials (discovered 2 exits: *Min x2) -10/Mines History --------- Turn | Location | Event 14 | -11/Scrapyard | Discovered new exit (range 16) 46 | -11/Scrapyard | Entered Materials 240 | -10/Materials | Discovered new exit (range 13) 301 | -10/Materials | Build established: Mutant 615 | -10/Materials | Discovered new exit (range 5) 716 | -10/Materials | Core integrity fell below 50% 871 | -10/Materials | Entered Mines 957 | -10/Mines | Learned Materials garrison access intel 1044 | -10/Mines | Core integrity fell below 20% 1104 | -10/Mines | Learned Materials emergency access door positions 1179 | -10/Mines | A weapon hastily lodged in a ceiling crevice suddenly fell to the ground 1212 | -10/Mines | Deemed a non-threat by the Exiles lab entrance 1375 | -10/Mines | Destroyed by G-47 Trooper with Particle Gun Last Messages --------------- 01160_ System corrupted: Matter fused (-9). 01179_ A Mak. Sword has been hastily shoved under some rubble with a note attached: "Here lies the sword of MA-1KR the Great. I think." 01183_ Acquired Mak. Sword. 01195_ System corrupted: Matter fused (-6). 01212_ "No threat detected, you may enter." 01239_ System corrupted: Heat flow error (+241). 01246_ Acquired 15 matter. 01248_ K-01 Serf collects debris. 01261_ System corrupted: Matter fused (-10). 01276_ System corrupted: Matter fused (-6). 01306_ K-01 Serf collects debris. 01308_ System corrupted: Heat flow error (+284). 01348_ System corrupted: IFF burst signal emitted. 01366_ System corrupted: Hvy. Assault Rifle rejected. 01366_ K-01 Serf collects debris. 01369_ Acquired Hvy. Assault Rifle. 01370_ K-01 Serf collects debris. 01371_ Med. Laser destroyed. 01373_ K-01 Serf collects debris. Map ----- +----------------------------------------------------+ | #???# #??????????????????#T """ """ #??????????? | | #=#???# #??????????????###### #??????????? | | #%#???# #??????????????# #############??????????? | | # #???# #??????????????# #?????????????????????? | | #=#???# ####???????????# #?????????????????????? | | *#???? #????????????# #?????????????????????? | | #[#????## #???????????## #?????????????????????? | | # #?????# #??????????## #?????????????????????? | | # #?????# #??????????# ##?????????????????????? | | # ####### #?????????## ##??????????????????????? | | # #?????##### ##??????????????????????? | | ######### #?????# ##?????????????????????? | | ????????# #?????# ### #?????????????????????? | | ????????# #?????# #?## #???????? ????????????? | | ????????# ####### #??## ##?????? ?????????? | | ????????# #???# #?????? #???????? | | ????????# #########???# k #?????? ?????? | | ??????### #???????????# #?????? ?????? | | ??????# #???????????# ##????? ????? | | ##????# #???????????# ##?????? ????? | | ???# #??????????## ##?#### ?????? | | ??## #?????????## ## g #??????? | | #?## ##???????## #???????? | | ## #??????## g## #???????? | | ?# #??????# ##?? ##??????? | | ?## ##??????# @ #### ##?????? | | ??# #???????# ## ## #?????? | | ?# ##??????## #### #????? | | ### #???????# ???## ## #?? | | #??#= ##???????# ????## ###?????????????? | | #???# %#??????? ?????#####???????????????? | | ##????# #?????? ?????????????????????????? | | ##??????# #????? ?????????????????????????? | | ##??????# #????# ?????????????????????????? | | ##????# #????# ?????????????????????????? | | #??### #????##? ? ??????????????????????????? | | #### ######????????????????????????????????? | | ## ##???????????????????????????????? | | #???????????????????????????????? | | #???????????????????????????????? | | # ##???????????????????????????????? | | ## ####????????????????????????????????? | | ?# # ##???????????????????????????????????? | | ?# ## ##????????????????????????????????????? | | ?# ### ##????????????????????????????????????? | | ?# #?## ##???????????????????????????????????? | | ?# #??# ##??????????????????????????????????? | | ?# #??# #??????????????????????????????????? | | ?# ##### #??????????????????????????????????? | | ?# #?## #??????????????????????????????????? | +----------------------------------------------------+ Best States ------------- Heat Dissipation 39 Energy Generation 10 Energy Capacity 250 Matter Stores 300 Matter Capacity 300 Sight Range 16 Terrain Scan Density 10 Evasion (%) 50 Recoil Reduction 2 Item Schematics ----------------- Huge Storage Unit | -10/Mines | Hacked Robot Schematics ------------------ None Fabricated ------------ Nothing Alien Tech Used ----------------- None Achievements -------------- None Challenges ------------ None Game ------ Seed SignalLegFlamer Manual? 0 Play Time 00:09:39 Cumulative 189.8 hours Start 2022.09.25 @ 15:43:53 End 2022.09.25 @ 15:52:27 Sessions 1 Manual Loads 0 Difficulty Rogue Special Mode None Game No. 76 Rogue 76 Adventurer 0 Explorer 0 Win Type - Total 8 Types 3/1/2/1/1/0/0/0/0 Lore% 80 Gallery% 74 Achievement% 64 Wizard Run 0 Options --------- ASCII 0 Keyboard 1 Movement Numpad Keybinds 0 Fullscreen 2 Font 18/X11 Map View 76x50 Tactical HUD 1 Map Filters NONE Filters NONE Steam 1 RUN: d9882b34-7848-4b1e-bc33-5f6d60be17fd